[Event "Live Chess"]
[Site "Chess.com"]
[Date "2011.02.01"]
[Round "-"]
[White "hipposcottimus"]
[Black "benski44"]
[Result "0-1"]
[CurrentPosition "1r2r2k/pb4b1/8/2p2Q2/2P5/8/PP4qP/R4RK1 w - -"]
[Timezone "UTC"]
[ECO "B20"]
[ECOUrl "https://www.chess.com/openings/Sicilian-Defense"]
[UTCDate "2011.02.01"]
[UTCTime "07:06:25"]
[WhiteElo "1797"]
[BlackElo "1862"]
[TimeControl "60"]
[Termination "benski44 won by checkmate"]
[StartTime "07:06:25"]
[EndDate "2011.02.01"]
[EndTime "07:07:31"]
[Link "https://www.chess.com/game/live/93555793"]

1. e4 {[%clk 0:01:00]} 1... c5 {[%clk 0:01:00]} 2. Bb5 {[%clk 0:00:58.5]} 2... Nc6 {[%clk 0:00:58.2]} 3. Bxc6 {[%clk 0:00:57.5]} 3... bxc6 {[%clk 0:00:57.4]} 4. c4 {[%clk 0:00:57.2]} 4... g6 {[%clk 0:00:56.7]} 5. d3 {[%clk 0:00:57]} 5... Bg7 {[%clk 0:00:56.2]} 6. f4 {[%clk 0:00:56.7]} 6... Nf6 {[%clk 0:00:55.6]} 7. Nc3 {[%clk 0:00:55.7]} 7... d6 {[%clk 0:00:55.2]} 8. e5 {[%clk 0:00:54]} 8... Nd7 {[%clk 0:00:53.3]} 9. Nf3 {[%clk 0:00:52.3]} 9... O-O {[%clk 0:00:52.2]} 10. O-O {[%clk 0:00:50.5]} 10... dxe5 {[%clk 0:00:51.5]} 11. fxe5 {[%clk 0:00:49.1]} 11... Nxe5 {[%clk 0:00:50.8]} 12. Re1 {[%clk 0:00:48.7]} 12... Nxf3+ {[%clk 0:00:49.2]} 13. Qxf3 {[%clk 0:00:48.3]} 13... e6 {[%clk 0:00:45.7]} 14. Bd2 {[%clk 0:00:47]} 14... f5 {[%clk 0:00:44.4]} 15. Rf1 {[%clk 0:00:46.1]} 15... Rb8 {[%clk 0:00:43.3]} 16. Qxc6 {[%clk 0:00:45]} 16... Bb7 {[%clk 0:00:42.4]} 17. Qxe6+ {[%clk 0:00:44]} 17... Kh8 {[%clk 0:00:40.9]} 18. Nd5 {[%clk 0:00:42.2]} 18... Re8 {[%clk 0:00:38.8]} 19. Ne7 {[%clk 0:00:39.8]} 19... Qxd3 {[%clk 0:00:35.7]} 20. Nxg6+ {[%clk 0:00:35.5]} 20... hxg6 {[%clk 0:00:34.3]} 21. Qxg6 {[%clk 0:00:34.8]} 21... Qxd2 {[%clk 0:00:32.7]} 22. Qxf5 {[%clk 0:00:34.1]} 22... Qxg2# {[%clk 0:00:30.9]} 0-1

[Event "Live Chess"]
[Site "Chess.com"]
[Date "2011.02.01"]
[Round "-"]
[White "benski44"]
[Black "hipposcottimus"]
[Result "1-0"]
[CurrentPosition "8/8/5R2/P7/5k2/2r1n3/8/1K6 b - -"]
[Timezone "UTC"]
[ECO "C30"]
[ECOUrl "https://www.chess.com/openings/Kings-Gambit-Declined-Queens-Knight-Defense-3.Nf3"]
[UTCDate "2011.02.01"]
[UTCTime "07:03:34"]
[WhiteElo "1780"]
[BlackElo "1806"]
[TimeControl "60"]
[Termination "benski44 won on time"]
[StartTime "07:03:34"]
[EndDate "2011.02.01"]
[EndTime "07:05:52"]
[Link "https://www.chess.com/game/live/93555153"]

1. e4 {[%clk 0:01:00]} 1... e5 {[%clk 0:01:00]} 2. f4 {[%clk 0:00:59.4]} 2... Nc6 {[%clk 0:00:59.7]} 3. Nf3 {[%clk 0:00:59]} 3... d5 {[%clk 0:00:59]} 4. d3 {[%clk 0:00:57.4]} 4... dxe4 {[%clk 0:00:57.8]} 5. dxe4 {[%clk 0:00:57]} 5... Qxd1+ {[%clk 0:00:57.4]} 6. Kxd1 {[%clk 0:00:56.7]} 6... exf4 {[%clk 0:00:56.7]} 7. Bxf4 {[%clk 0:00:55.8]} 7... Bg4 {[%clk 0:00:53.9]} 8. Bb5 {[%clk 0:00:54.7]} 8... O-O-O+ {[%clk 0:00:51.9]} 9. Nd2 {[%clk 0:00:52.3]} 9... Nd4 {[%clk 0:00:50.2]} 10. Kc1 {[%clk 0:00:48.5]} 10... Nxb5 {[%clk 0:00:48]} 11. h3 {[%clk 0:00:46.8]} 11... Bxf3 {[%clk 0:00:46.9]} 12. gxf3 {[%clk 0:00:46.1]} 12... Nf6 {[%clk 0:00:46.4]} 13. Nc4 {[%clk 0:00:44.2]} 13... Bc5 {[%clk 0:00:44.9]} 14. a4 {[%clk 0:00:42.7]} 14... Nd4 {[%clk 0:00:41.9]} 15. c3 {[%clk 0:00:41.2]} 15... Nb3+ {[%clk 0:00:41.1]} 16. Kc2 {[%clk 0:00:39.8]} 16... Nxa1+ {[%clk 0:00:40.7]} 17. Rxa1 {[%clk 0:00:39.1]} 17... Nh5 {[%clk 0:00:38.7]} 18. b4 {[%clk 0:00:39]} 18... Nxf4 {[%clk 0:00:37.9]} 19. bxc5 {[%clk 0:00:38]} 19... Ne2 {[%clk 0:00:37.3]} 20. Kb3 {[%clk 0:00:37.1]} 20... Nf4 {[%clk 0:00:36.6]} 21. Re1 {[%clk 0:00:36.4]} 21... Rd3 {[%clk 0:00:35.4]} 22. Ne5 {[%clk 0:00:35.2]} 22... f6 {[%clk 0:00:33.8]} 23. Nxd3 {[%clk 0:00:34.1]} 23... Nxd3 {[%clk 0:00:31.7]} 24. Re3 {[%clk 0:00:34]} 24... Nf4 {[%clk 0:00:30.5]} 25. e5 {[%clk 0:00:31.4]} 25... fxe5 {[%clk 0:00:27.4]} 26. Rxe5 {[%clk 0:00:30.3]} 26... Ng6 {[%clk 0:00:27.2]} 27. Rg5 {[%clk 0:00:29]} 27... Rd8 {[%clk 0:00:26.7]} 28. h4 {[%clk 0:00:27.8]} 28... Rd3 {[%clk 0:00:26.1]} 29. h5 {[%clk 0:00:26.8]} 29... Nf4 {[%clk 0:00:21.2]} 30. Rf5 {[%clk 0:00:24.7]} 30... Rxf3 {[%clk 0:00:20.1]} 31. Rf8+ {[%clk 0:00:23.3]} 31... Kd7 {[%clk 0:00:19.7]} 32. Rf7+ {[%clk 0:00:23.2]} 32... Ke8 {[%clk 0:00:18.3]} 33. Rxg7 {[%clk 0:00:23.1]} 33... Nxh5 {[%clk 0:00:15.6]} 34. Rxh7 {[%clk 0:00:22]} 34... Ng3 {[%clk 0:00:15]} 35. Rh8+ {[%clk 0:00:21.4]} 35... Kf7 {[%clk 0:00:14.7]} 36. Rh3 {[%clk 0:00:21.3]} 36... Re3 {[%clk 0:00:11.3]} 37. Kc4 {[%clk 0:00:20.4]} 37... Ke6 {[%clk 0:00:10.9]} 38. Rh6+ {[%clk 0:00:19.3]} 38... Kf5 {[%clk 0:00:08.4]} 39. Rh7 {[%clk 0:00:17.8]} 39... Kf4 {[%clk 0:00:08.1]} 40. Rf7+ {[%clk 0:00:16.8]} 40... Nf5 {[%clk 0:00:07.8]} 41. Rxc7 {[%clk 0:00:15.9]} 41... Re4+ {[%clk 0:00:07.5]} 42. Kd3 {[%clk 0:00:14.3]} 42... b6 {[%clk 0:00:07.2]} 43. cxb6 {[%clk 0:00:12.8]} 43... axb6 {[%clk 0:00:06.7]} 44. Rc6 {[%clk 0:00:12.4]} 44... Re3+ {[%clk 0:00:05.9]} 45. Kd2 {[%clk 0:00:11.1]} 45... Rf3 {[%clk 0:00:03.4]} 46. Rxb6 {[%clk 0:00:10]} 46... Rf2+ {[%clk 0:00:03]} 47. Kc1 {[%clk 0:00:09.9]} 47... Ne3 {[%clk 0:00:01.9]} 48. a5 {[%clk 0:00:08.7]} 48... Rc2+ {[%clk 0:00:01.6]} 49. Kb1 {[%clk 0:00:07.5]} 49... Rxc3 {[%clk 0:00:01.2]} 50. Rf6+ {[%clk 0:00:06.3]} 1-0

[Event "Live Chess"]
[Site "Chess.com"]
[Date "2011.02.01"]
[Round "-"]
[White "hipposcottimus"]
[Black "paaras55"]
[Result "1-0"]
[CurrentPosition "3N4/p7/2R4p/kB2p1p1/1PP5/2KP2P1/P6P/8 b - b3"]
[Timezone "UTC"]
[ECO "C57"]
[ECOUrl "https://www.chess.com/openings/Italian-Game-Traxler-Knight-Sacrifice-Line...7.Nxh8-d5-8.exd5-Bg4"]
[UTCDate "2011.02.01"]
[UTCTime "06:56:18"]
[WhiteElo "1447"]
[BlackElo "1192"]
[TimeControl "180"]
[Termination "hipposcottimus won by checkmate"]
[StartTime "06:56:18"]
[EndDate "2011.02.01"]
[EndTime "07:01:30"]
[Link "https://www.chess.com/game/live/93553823"]

1. e4 {[%clk 0:03:00]} 1... e5 {[%clk 0:03:00]} 2. Nf3 {[%clk 0:02:59]} 2... Nc6 {[%clk 0:02:52.3]} 3. Bc4 {[%clk 0:02:57.4]} 3... Nf6 {[%clk 0:02:48.5]} 4. Ng5 {[%clk 0:02:56.5]} 4... Bc5 {[%clk 0:02:45]} 5. Nxf7 {[%clk 0:02:51.6]} 5... Bxf2+ {[%clk 0:02:41.3]} 6. Kf1 {[%clk 0:02:48.9]} 6... Qe7 {[%clk 0:02:37.7]} 7. Nxh8 {[%clk 0:02:45.6]} 7... d5 {[%clk 0:02:25.7]} 8. exd5 {[%clk 0:02:42.3]} 8... Bg4 {[%clk 0:02:22.2]} 9. dxc6 {[%clk 0:02:33.7]} 9... Bxd1 {[%clk 0:02:18]} 10. cxb7 {[%clk 0:02:29.9]} 10... Rb8 {[%clk 0:02:07.3]} 11. Ba6 {[%clk 0:02:19.6]} 11... Qf8 {[%clk 0:01:54.9]} 12. Bb5+ {[%clk 0:02:17]} 12... Kd8 {[%clk 0:01:48.2]} 13. Nc3 {[%clk 0:02:13.3]} 13... Qxh8 {[%clk 0:01:46.8]} 14. Nxd1 {[%clk 0:02:12.2]} 14... Qf8 {[%clk 0:01:44.1]} 15. Nxf2 {[%clk 0:02:10.8]} 15... Nd5 {[%clk 0:01:42.4]} 16. c4 {[%clk 0:02:01]} 16... Nf6 {[%clk 0:01:40.1]} 17. d3 {[%clk 0:01:57.8]} 17... Ng4 {[%clk 0:01:39.1]} 18. Bg5+ {[%clk 0:01:52]} 18... Nf6 {[%clk 0:01:22.9]} 19. Ke2 {[%clk 0:01:38.2]} 19... h6 {[%clk 0:01:19.2]} 20. Bxf6+ {[%clk 0:01:36.9]} 20... Qxf6 {[%clk 0:01:18.1]} 21. Ne4 {[%clk 0:01:36.6]} 21... Qh4 {[%clk 0:01:12.6]} 22. g3 {[%clk 0:01:32.8]} 22... Qg4+ {[%clk 0:01:10.2]} 23. Kd2 {[%clk 0:01:30.9]} 23... Qf3 {[%clk 0:01:05.8]} 24. Rhf1 {[%clk 0:01:26.9]} 24... Qg2+ {[%clk 0:01:01.8]} 25. Rf2 {[%clk 0:01:25.1]} 25... Qh3 {[%clk 0:00:55.6]} 26. Raf1 {[%clk 0:01:21.2]} 26... Rxb7 {[%clk 0:00:54.6]} 27. Rf8+ {[%clk 0:01:19.1]} 27... Ke7 {[%clk 0:00:52.4]} 28. R8f7+ {[%clk 0:01:15.6]} 28... Ke6 {[%clk 0:00:49.7]} 29. Nc5+ {[%clk 0:01:14.5]} 29... Kd6 {[%clk 0:00:45.9]} 30. Nxb7+ {[%clk 0:01:13.5]} 30... Ke6 {[%clk 0:00:41.6]} 31. Nd8+ {[%clk 0:01:10.4]} 31... Kd6 {[%clk 0:00:40.1]} 32. Kc3 {[%clk 0:00:58.8]} 32... Qxf1 {[%clk 0:00:36.3]} 33. Rxf1 {[%clk 0:00:57]} 33... Kc5 {[%clk 0:00:35.5]} 34. Rf7 {[%clk 0:00:54.4]} 34... g5 {[%clk 0:00:29.3]} 35. Rxc7+ {[%clk 0:00:53]} 35... Kb6 {[%clk 0:00:26.2]} 36. Rc6+ {[%clk 0:00:45.2]} 36... Ka5 {[%clk 0:00:21.6]} 37. b4# {[%clk 0:00:44.7]} 1-0

[Event "Live Chess"]
[Site "Chess.com"]
[Date "2011.02.01"]
[Round "-"]
[White "paaras55"]
[Black "hipposcottimus"]
[Result "0-1"]
[CurrentPosition "r1b1r1k1/ppp2ppp/2p5/5q2/2N5/N2R2K1/PP4PP/R1B5 b - -"]
[Timezone "UTC"]
[ECO "C65"]
[ECOUrl "https://www.chess.com/openings/Ruy-Lopez-Opening-Berlin-Defense-4.Bxc6-dxc6"]
[UTCDate "2011.02.01"]
[UTCTime "06:54:14"]
[WhiteElo "1195"]
[BlackElo "1444"]
[TimeControl "180"]
[Termination "hipposcottimus won by resignation"]
[StartTime "06:54:14"]
[EndDate "2011.02.01"]
[EndTime "06:55:58"]
[Link "https://www.chess.com/game/live/93553478"]

1. e4 {[%clk 0:03:00]} 1... e5 {[%clk 0:03:00]} 2. Nf3 {[%clk 0:02:58.8]} 2... Nc6 {[%clk 0:02:59.7]} 3. Bb5 {[%clk 0:02:56.2]} 3... Nf6 {[%clk 0:02:59.4]} 4. Bxc6 {[%clk 0:02:54.5]} 4... dxc6 {[%clk 0:02:59.1]} 5. Nxe5 {[%clk 0:02:53.3]} 5... Nxe4 {[%clk 0:02:57]} 6. Nc4 {[%clk 0:02:48.7]} 6... Bc5 {[%clk 0:02:53.9]} 7. Qe2 {[%clk 0:02:47.1]} 7... Bxf2+ {[%clk 0:02:51.9]} 8. Kf1 {[%clk 0:02:41.9]} 8... Qe7 {[%clk 0:02:50.7]} 9. d3 {[%clk 0:02:36]} 9... Ng3+ {[%clk 0:02:37]} 10. Kxf2 {[%clk 0:02:32.3]} 10... Qxe2+ {[%clk 0:02:34.5]} 11. Kxg3 {[%clk 0:02:30.4]} 11... Qxc2 {[%clk 0:02:33.6]} 12. Nba3 {[%clk 0:02:25.6]} 12... Qxd3+ {[%clk 0:02:31.6]} 13. Kf2 {[%clk 0:02:22.2]} 13... O-O {[%clk 0:02:26.9]} 14. Rd1 {[%clk 0:02:18.3]} 14... Qf5+ {[%clk 0:02:18.1]} 15. Kg3 {[%clk 0:02:13.4]} 15... Re8 {[%clk 0:02:14.6]} 16. Rd3 {[%clk 0:02:09.9]} 0-1

[Event "Live Chess"]
[Site "Chess.com"]
[Date "2011.02.01"]
[Round "-"]
[White "hipposcottimus"]
[Black "paaras55"]
[Result "1-0"]
[CurrentPosition "2k5/p1p3pp/2p5/2br4/6N1/8/PPPP1PPP/RNB2RK1 b - -"]
[Timezone "UTC"]
[ECO "C57"]
[ECOUrl "https://www.chess.com/openings/Italian-Game-Fried-Liver-Attack"]
[UTCDate "2011.02.01"]
[UTCTime "06:52:11"]
[WhiteElo "1441"]
[BlackElo "1198"]
[TimeControl "180"]
[Termination "hipposcottimus won by resignation"]
[StartTime "06:52:11"]
[EndDate "2011.02.01"]
[EndTime "06:54:04"]
[Link "https://www.chess.com/game/live/93553076"]

1. e4 {[%clk 0:03:00]} 1... e5 {[%clk 0:03:00]} 2. Nf3 {[%clk 0:02:59.5]} 2... Nc6 {[%clk 0:02:59.6]} 3. Bc4 {[%clk 0:02:59.1]} 3... Nf6 {[%clk 0:02:57]} 4. Ng5 {[%clk 0:02:57.7]} 4... d5 {[%clk 0:02:41.1]} 5. exd5 {[%clk 0:02:56.5]} 5... Nxd5 {[%clk 0:02:40.3]} 6. Nxf7 {[%clk 0:02:55.1]} 6... Qd7 {[%clk 0:02:14]} 7. Nxh8 {[%clk 0:02:51.7]} 7... Qg4 {[%clk 0:02:09.7]} 8. Qxg4 {[%clk 0:02:43]} 8... Bxg4 {[%clk 0:02:09.1]} 9. Bxd5 {[%clk 0:02:42]} 9... O-O-O {[%clk 0:02:05]} 10. Bxc6 {[%clk 0:02:41.2]} 10... bxc6 {[%clk 0:02:02.3]} 11. O-O {[%clk 0:02:40.5]} 11... Bc5 {[%clk 0:01:54.9]} 12. Nf7 {[%clk 0:02:38.5]} 12... Rd4 {[%clk 0:01:49.7]} 13. Nxe5 {[%clk 0:02:36.2]} 13... Rd5 {[%clk 0:01:39.7]} 14. Nxg4 {[%clk 0:02:34.7]} 1-0

[Event "Live Chess"]
[Site "Chess.com"]
[Date "2011.02.01"]
[Round "-"]
[White "hipposcottimus"]
[Black "Nephesh"]
[Result "1-0"]
[CurrentPosition "2kr4/pb5R/7p/1Ppn2p1/3p4/6B1/1PP3PP/R5K1 b - -"]
[Timezone "UTC"]
[ECO "C41"]
[ECOUrl "https://www.chess.com/openings/Philidor-Defense-3.Bc4"]
[UTCDate "2011.02.01"]
[UTCTime "06:48:48"]
[WhiteElo "1438"]
[BlackElo "1529"]
[TimeControl "180"]
[Termination "hipposcottimus won by resignation"]
[StartTime "06:48:48"]
[EndDate "2011.02.01"]
[EndTime "06:51:57"]
[Link "https://www.chess.com/game/live/93552374"]

1. e4 {[%clk 0:03:00]} 1... e5 {[%clk 0:03:00]} 2. Nf3 {[%clk 0:02:59.6]} 2... d6 {[%clk 0:02:57.7]} 3. Bc4 {[%clk 0:02:59.1]} 3... c6 {[%clk 0:02:54.3]} 4. d4 {[%clk 0:02:58.8]} 4... d5 {[%clk 0:02:52.9]} 5. Bb3 {[%clk 0:02:57]} 5... dxe4 {[%clk 0:02:50.9]} 6. Nfd2 {[%clk 0:02:55.3]} 6... exd4 {[%clk 0:02:50]} 7. Nxe4 {[%clk 0:02:54.4]} 7... Qe7 {[%clk 0:02:48.1]} 8. f3 {[%clk 0:02:53.6]} 8... f5 {[%clk 0:02:47.2]} 9. Qe2 {[%clk 0:02:52.9]} 9... fxe4 {[%clk 0:02:46.4]} 10. fxe4 {[%clk 0:02:52.2]} 10... Nf6 {[%clk 0:02:44.9]} 11. O-O {[%clk 0:02:51.8]} 11... Qxe4 {[%clk 0:02:38.1]} 12. Re1 {[%clk 0:02:42.4]} 12... Qxe2 {[%clk 0:02:26.5]} 13. Rxe2+ {[%clk 0:02:42]} 13... Be7 {[%clk 0:02:26.2]} 14. Bg5 {[%clk 0:02:40.8]} 14... Nbd7 {[%clk 0:02:22.3]} 15. Nd2 {[%clk 0:02:36.5]} 15... b5 {[%clk 0:02:21.5]} 16. a4 {[%clk 0:02:34.2]} 16... c5 {[%clk 0:02:18.6]} 17. axb5 {[%clk 0:02:33]} 17... h6 {[%clk 0:01:54.2]} 18. Bf4 {[%clk 0:02:31.6]} 18... g5 {[%clk 0:01:48.3]} 19. Bd5 {[%clk 0:02:30.6]} 19... Nxd5 {[%clk 0:01:41.5]} 20. Bd6 {[%clk 0:02:29.7]} 20... Bb7 {[%clk 0:01:30.1]} 21. Nf3 {[%clk 0:02:22.9]} 21... Rh7 {[%clk 0:01:23]} 22. Bg3 {[%clk 0:02:08.8]} 22... O-O-O {[%clk 0:01:19.3]} 23. Ne5 {[%clk 0:02:06.5]} 23... Nxe5 {[%clk 0:01:16.1]} 24. Rxe5 {[%clk 0:02:05]} 24... Kb8 {[%clk 0:01:13.9]} 25. Rxe7+ {[%clk 0:01:52.4]} 25... Kc8 {[%clk 0:01:13]} 26. Rxh7 {[%clk 0:01:51.4]} 1-0

[Event "Live Chess"]
[Site "Chess.com"]
[Date "2011.02.01"]
[Round "-"]
[White "mattcrossette"]
[Black "hipposcottimus"]
[Result "0-1"]
[CurrentPosition "5r2/5Pk1/2p5/p7/2BPp3/P1P5/2P4K/5R2 w - -"]
[Timezone "UTC"]
[ECO "C31"]
[ECOUrl "https://www.chess.com/openings/Kings-Gambit-Declined-Falkbeer-Accepted-Staunton-Line"]
[UTCDate "2011.02.01"]
[UTCTime "06:41:55"]
[WhiteElo "1755"]
[BlackElo "1816"]
[TimeControl "60"]
[Termination "hipposcottimus won on time"]
[StartTime "06:41:55"]
[EndDate "2011.02.01"]
[EndTime "06:44:06"]
[Link "https://www.chess.com/game/live/93551014"]

1. e4 {[%clk 0:01:00]} 1... e5 {[%clk 0:01:00]} 2. f4 {[%clk 0:00:59.3]} 2... d5 {[%clk 0:00:58.6]} 3. exd5 {[%clk 0:00:57.8]} 3... e4 {[%clk 0:00:58.1]} 4. Bc4 {[%clk 0:00:55.4]} 4... Nf6 {[%clk 0:00:57.1]} 5. Nc3 {[%clk 0:00:51.8]} 5... c6 {[%clk 0:00:56.3]} 6. dxc6 {[%clk 0:00:50.4]} 6... bxc6 {[%clk 0:00:55.7]} 7. Nge2 {[%clk 0:00:47.8]} 7... Bb4 {[%clk 0:00:54.5]} 8. O-O {[%clk 0:00:45.4]} 8... O-O {[%clk 0:00:53.4]} 9. d4 {[%clk 0:00:42.3]} 9... Bg4 {[%clk 0:00:52.7]} 10. Be3 {[%clk 0:00:40]} 10... a5 {[%clk 0:00:46.1]} 11. h3 {[%clk 0:00:38.7]} 11... Bh5 {[%clk 0:00:44.9]} 12. g4 {[%clk 0:00:37.6]} 12... Nxg4 {[%clk 0:00:44.2]} 13. hxg4 {[%clk 0:00:36.8]} 13... Bxg4 {[%clk 0:00:43.9]} 14. Qe1 {[%clk 0:00:35.9]} 14... Bf3 {[%clk 0:00:41.7]} 15. Qg3 {[%clk 0:00:32]} 15... Qf6 {[%clk 0:00:38.7]} 16. a3 {[%clk 0:00:26.8]} 16... Qh6 {[%clk 0:00:37.1]} 17. Qh2 {[%clk 0:00:23]} 17... Qg6+ {[%clk 0:00:34.4]} 18. Ng3 {[%clk 0:00:21.8]} 18... Bxc3 {[%clk 0:00:32]} 19. bxc3 {[%clk 0:00:20.7]} 19... Nd7 {[%clk 0:00:31.1]} 20. f5 {[%clk 0:00:19.4]} 20... Qg5 {[%clk 0:00:29.2]} 21. Bxg5 {[%clk 0:00:17.9]} 21... h6 {[%clk 0:00:28.5]} 22. Bxh6 {[%clk 0:00:16.5]} 22... gxh6 {[%clk 0:00:28.2]} 23. Qxh6 {[%clk 0:00:15.7]} 23... Nf6 {[%clk 0:00:25.8]} 24. Qxf6 {[%clk 0:00:14.4]} 24... Rfe8 {[%clk 0:00:24.3]} 25. Qxf7+ {[%clk 0:00:13.5]} 25... Kh8 {[%clk 0:00:23.1]} 26. f6 {[%clk 0:00:12.8]} 26... Rg8 {[%clk 0:00:19.4]} 27. Qh5+ {[%clk 0:00:11.5]} 27... Bxh5 {[%clk 0:00:16.3]} 28. f7 {[%clk 0:00:10.2]} 28... Rxg3+ {[%clk 0:00:15.9]} 29. Kh2 {[%clk 0:00:09]} 29... Rg7 {[%clk 0:00:11]} 30. Rf5 {[%clk 0:00:06.3]} 30... Rf8 {[%clk 0:00:09.6]} 31. Rxh5+ {[%clk 0:00:04.5]} 31... Rh7 {[%clk 0:00:09.2]} 32. Rxh7+ {[%clk 0:00:01.9]} 32... Kxh7 {[%clk 0:00:08.9]} 33. Rf1 {[%clk 0:00:00.3]} 33... Kg7 {[%clk 0:00:05.8]} 0-1

[Event "Live Chess"]
[Site "Chess.com"]
[Date "2011.02.01"]
[Round "-"]
[White "hipposcottimus"]
[Black "mattcrossette"]
[Result "1-0"]
[CurrentPosition "8/2k4p/2p3p1/2P3b1/6P1/P3pK1n/1P5P/4R3 b - -"]
[Timezone "UTC"]
[ECO "B00"]
[ECOUrl "https://www.chess.com/openings/Kings-Pawn-Opening-Duras-Gambit"]
[UTCDate "2011.02.01"]
[UTCTime "06:39:30"]
[WhiteElo "1809"]
[BlackElo "1762"]
[TimeControl "60"]
[Termination "hipposcottimus won on time"]
[StartTime "06:39:30"]
[EndDate "2011.02.01"]
[EndTime "06:41:39"]
[Link "https://www.chess.com/game/live/93550538"]

1. e4 {[%clk 0:01:00]} 1... f5 {[%clk 0:01:00]} 2. e5 {[%clk 0:00:58.4]} 2... d6 {[%clk 0:00:59]} 3. d4 {[%clk 0:00:58]} 3... dxe5 {[%clk 0:00:58.1]} 4. d5 {[%clk 0:00:57.6]} 4... Nf6 {[%clk 0:00:54.8]} 5. Nf3 {[%clk 0:00:57.2]} 5... e4 {[%clk 0:00:53.4]} 6. Ne5 {[%clk 0:00:50.2]} 6... Qxd5 {[%clk 0:00:48.5]} 7. Qxd5 {[%clk 0:00:36]} 7... Nxd5 {[%clk 0:00:47.1]} 8. Bc4 {[%clk 0:00:35.4]} 8... c6 {[%clk 0:00:45]} 9. Bb3 {[%clk 0:00:32.8]} 9... e6 {[%clk 0:00:43.8]} 10. Nc3 {[%clk 0:00:31.9]} 10... Bb4 {[%clk 0:00:41.4]} 11. Bd2 {[%clk 0:00:29.6]} 11... O-O {[%clk 0:00:39.3]} 12. O-O {[%clk 0:00:27.9]} 12... Nd7 {[%clk 0:00:35.3]} 13. a3 {[%clk 0:00:27]} 13... Bxc3 {[%clk 0:00:32.4]} 14. Nxd7 {[%clk 0:00:26.2]} 14... Bxd2 {[%clk 0:00:29.5]} 15. Nxf8 {[%clk 0:00:25.3]} 15... Kxf8 {[%clk 0:00:28.7]} 16. Rad1 {[%clk 0:00:24.5]} 16... Bf4 {[%clk 0:00:25.8]} 17. c4 {[%clk 0:00:24]} 17... Nf6 {[%clk 0:00:22.7]} 18. Rd8+ {[%clk 0:00:21.5]} 18... Ke7 {[%clk 0:00:20.9]} 19. Rfd1 {[%clk 0:00:19.3]} 19... Bd7 {[%clk 0:00:19.8]} 20. Rxa8 {[%clk 0:00:16]} 20... e3 {[%clk 0:00:17.2]} 21. Rxa7 {[%clk 0:00:15.3]} 21... exf2+ {[%clk 0:00:15.5]} 22. Kxf2 {[%clk 0:00:15]} 22... Ne4+ {[%clk 0:00:14.5]} 23. Kf1 {[%clk 0:00:14.7]} 23... Nd2+ {[%clk 0:00:12.2]} 24. Ke2 {[%clk 0:00:13.4]} 24... e5 {[%clk 0:00:10.9]} 25. Rxb7 {[%clk 0:00:11.9]} 25... e4 {[%clk 0:00:09.5]} 26. c5 {[%clk 0:00:11.6]} 26... e3 {[%clk 0:00:08.1]} 27. Rxd7+ {[%clk 0:00:11.3]} 27... Kxd7 {[%clk 0:00:07]} 28. Rc1 {[%clk 0:00:10.6]} 28... Kc7 {[%clk 0:00:05.9]} 29. Be6 {[%clk 0:00:10.2]} 29... Bg5 {[%clk 0:00:04.9]} 30. Bxf5 {[%clk 0:00:09.5]} 30... g6 {[%clk 0:00:04]} 31. Bh3 {[%clk 0:00:08.9]} 31... Ne4 {[%clk 0:00:02.7]} 32. g4 {[%clk 0:00:08.6]} 32... Nf2 {[%clk 0:00:01.6]} 33. Kf3 {[%clk 0:00:08.3]} 33... Nxh3 {[%clk 0:00:00.7]} 34. Re1 {[%clk 0:00:07.7]} 1-0

[Event "Live Chess"]
[Site "Chess.com"]
[Date "2011.02.01"]
[Round "-"]
[White "mattcrossette"]
[Black "hipposcottimus"]
[Result "0-1"]
[CurrentPosition "1k1r4/ppn1R2p/3r4/3RQ3/2P2P2/8/PP4PP/6K1 w - -"]
[Timezone "UTC"]
[ECO "C30"]
[ECOUrl "https://www.chess.com/openings/Kings-Gambit-Declined-Queens-Knight-Defense-3.Nf3"]
[UTCDate "2011.02.01"]
[UTCTime "06:37:09"]
[WhiteElo "1769"]
[BlackElo "1802"]
[TimeControl "60"]
[Termination "hipposcottimus won on time"]
[StartTime "06:37:09"]
[EndDate "2011.02.01"]
[EndTime "06:39:15"]
[Link "https://www.chess.com/game/live/93550085"]

1. e4 {[%clk 0:01:00]} 1... e5 {[%clk 0:01:00]} 2. f4 {[%clk 0:00:59.2]} 2... Nc6 {[%clk 0:00:59.7]} 3. Nf3 {[%clk 0:00:58.1]} 3... d5 {[%clk 0:00:57.6]} 4. exd5 {[%clk 0:00:57]} 4... Qxd5 {[%clk 0:00:56.9]} 5. d3 {[%clk 0:00:54.5]} 5... Bg4 {[%clk 0:00:54.2]} 6. Be2 {[%clk 0:00:50.2]} 6... Bc5 {[%clk 0:00:51.6]} 7. c4 {[%clk 0:00:45.9]} 7... Qd7 {[%clk 0:00:44.7]} 8. Nxe5 {[%clk 0:00:41.2]} 8... Bxe2 {[%clk 0:00:39.8]} 9. Nxd7 {[%clk 0:00:34.4]} 9... Kxd7 {[%clk 0:00:39.5]} 10. Qxe2 {[%clk 0:00:31.6]} 10... Rd8 {[%clk 0:00:39.1]} 11. Be3 {[%clk 0:00:27.6]} 11... Bd4 {[%clk 0:00:35.4]} 12. Bxd4 {[%clk 0:00:25.8]} 12... Nxd4 {[%clk 0:00:35.1]} 13. Qg4+ {[%clk 0:00:24.8]} 13... f5 {[%clk 0:00:32.1]} 14. Qxg7+ {[%clk 0:00:22.9]} 14... Ne7 {[%clk 0:00:31.7]} 15. Qxd4+ {[%clk 0:00:20.6]} 15... Kc8 {[%clk 0:00:31.5]} 16. Qe5 {[%clk 0:00:19.2]} 16... Nc6 {[%clk 0:00:31.2]} 17. Qe6+ {[%clk 0:00:17]} 17... Kb8 {[%clk 0:00:28]} 18. O-O {[%clk 0:00:15.8]} 18... Rxd3 {[%clk 0:00:25.2]} 19. Qxf5 {[%clk 0:00:14.6]} 19... Rhd8 {[%clk 0:00:20.1]} 20. Nc3 {[%clk 0:00:13.7]} 20... R3d7 {[%clk 0:00:18.4]} 21. Nd5 {[%clk 0:00:12.7]} 21... Rd6 {[%clk 0:00:16.2]} 22. Rae1 {[%clk 0:00:10.7]} 22... Nb4 {[%clk 0:00:14.5]} 23. Re7 {[%clk 0:00:08.2]} 23... Na6 {[%clk 0:00:13]} 24. Rd1 {[%clk 0:00:04.1]} 24... c6 {[%clk 0:00:12.3]} 25. Qe5 {[%clk 0:00:02]} 25... cxd5 {[%clk 0:00:10.7]} 26. Rxd5 {[%clk 0:00:01.1]} 26... Nc7 {[%clk 0:00:06.4]} 0-1